bitfinex-derivatives/quotes_SOLF0:USTF0_20251125
["timestamp","ask_amount","ask_price","bid_price","bid_amount"]
[1764102733355,5.35143593,137.81,137.8,0.04578151]
[1764102734160,3.07,137.82,137.8,0.04578151]
[1764102734459,8.42237951,137.82,137.8,0.04578151]
[1764102734759,5.35237951,137.82,137.8,0.04578151]
[1764102734966,8.42237951,137.82,137.8,0.04578151]
[1764102736056,0.05022515,137.83,137.8,3.09578151]
[1764102736256,0.05022515,137.83,137.82,3.05]
[1764102737855,0.05022515,137.83,137.8,0.04578151]
[1764102738062,0.05022515,137.83,137.82,1.73309592]
[1764102738561,0.05022515,137.83,137.82,1.73347907]
[1764102738756,0.05022515,137.83,137.81,9.6437]
[1764102739659,2.91022515,137.83,137.82,1.73407026]
[1764102739860,0.05022515,137.83,137.81,1.73407026]
[1764102740764,2.91022515,137.83,137.8,0.04578151]
[1764102741656,0.05022515,137.83,137.8,0.04578151]
[1764102741858,0.05022515,137.83,137.81,4.84485308]
[1764102742158,0.05022515,137.83,137.82,1.73485308]
[1764102742353,0.05022515,137.83,137.81,3.11]
[1764102742354,0.05022515,137.83,137.8,6.57978151]
[1764102742552,0.05022515,137.83,137.82,1.7351059]
[1764102744864,2.91022515,137.83,137.8,0.04578151]
[1764102745064,25.14,137.82,137.8,0.04578151]
[1764102745361,0.05022515,137.83,137.8,3.15578151]
[1764102745857,0.05022515,137.83,137.81,1.73761164]
[1764102746070,0.05022515,137.83,137.82,4.84761164]
[1764102746261,0.05022515,137.83,137.82,3.11]
[1764102748871,0.05022515,137.83,137.81,6.5336]
[1764102749071,0.05022515,137.83,137.82,1.74118645]
[1764102749469,0.05022515,137.83,137.81,9.6436]
[1764102750772,0.05022515,137.83,137.82,1.74215469]
[1764102751865,0.05022515,137.83,137.82,4.85215469]
[1764102752069,0.05022515,137.83,137.82,3.11]
[1764102753065,10.42371112,137.87,137.82,3.11]
[1764102753273,10.42371112,137.87,137.81,101.6333]
[1764102753274,25.12,137.88,137.84,4.85158783]
[1764102753474,38.40371112,137.88,137.85,1.74158783]
[1764102753768,27.98,137.88,137.84,3.11]
[1764102753961,27.98,137.88,137.85,1.74131779]
[1764102754160,28.03209226,137.88,137.85,1.78881145]
[1764102754361,28.03209226,137.88,137.85,6.57929366]
[1764102754767,2.91209226,137.88,137.85,6.57929366]
[1764102755168,10.47229554,137.87,137.85,6.57929366]
[1764102755373,5.39977004,137.87,137.85,6.57929366]
[1764102756271,2.91209226,137.88,137.85,6.57929366]
[1764102756473,10.47890765,137.87,137.85,6.57929366]
[1764102756672,2.91209226,137.88,137.85,6.57929366]
[1764102756875,13.33890812,137.87,137.85,0.04749366]
[1764102757075,10.48001034,137.86,137.85,0.04749366]
[1764102758674,13.34001034,137.86,137.85,0.04749366]
[1764102760873,1.034e-05,137.86,137.85,3.15749366]
[1764102761077,0.05209226,137.88,137.87,3.11]
[1764102761471,2.91209226,137.88,137.85,9.68929366]
[1764102761773,0.05209226,137.88,137.86,1.74806203]
[1764102762584,2.91209226,137.88,137.86,1.74806203]
[1764102762969,2.91209226,137.88,137.85,0.04749366]
[1764102763171,2.86,137.86,137.85,0.04749366]
[1764102763876,2.86,137.86,137.79,3.11]
[1764102763877,2.86,137.85,137.79,3.11]
[1764102764177,2.86,137.85,137.83,1.75041501]
[1764102764576,2.86,137.85,137.76,3.11]
[1764102764775,9.51760103,137.85,137.76,3.11]
[1764102764980,0.0506519,137.82,137.79,0.05215268]
[1764102765177,2.9106519,137.82,137.79,0.05215268]
[1764102765375,0.0506519,137.82,137.79,3.16215268]
[1764102766278,0.0506519,137.82,137.81,3.11]
[1764102766885,2.86,137.88,137.83,3.11]
[1764102767077,27.98,137.88,137.85,1.7500657]
[1764102767488,27.98,137.88,137.86,1.7500657]
[1764102767784,2.88,137.87,137.86,0.04995542]
[1764102770388,9.53760103,137.87,137.86,0.04995542]
[1764102770590,34.65760103,137.87,137.86,0.04995542]
[1764102770888,2.88,137.86,137.8,2.97]
[1764102771090,2.88,137.86,137.83,1.75220306]
[1764102771981,2.9351894,137.86,137.83,1.79847414]
[1764102772182,2.9351894,137.86,137.83,0.04593919]
[1764102772388,2.9351894,137.86,137.83,11.30123699]
[1764102772777,0.0551894,137.86,137.83,9.54873919]
[1764102772978,5.40446478,137.85,137.83,9.54873919]
[1764102773178,5.40446478,137.84,137.83,9.54873919]
[1764102773892,0.0551894,137.86,137.84,6.5321]
[1764102774087,5.40433026,137.85,137.84,6.5321]
[1764102774393,5.40433026,137.85,137.84,9.5021]
[1764102775779,8.28433026,137.85,137.84,6.5321]
[1764102776393,5.40433026,137.85,137.84,6.5321]
[1764102778689,2.88,137.84,137.83,0.04593919]
[1764102778901,8.28433026,137.84,137.83,0.04593919]
[1764102780901,2.92,137.83,137.77,104.6944]
[1764102781088,5.40433026,137.82,137.8,4.78439266]
[1764102781287,31.75760103,137.84,137.8,3.03]
[1764102781288,5.40433026,137.81,137.8,3.03]
[1764102781488,5.40433026,137.81,137.8,6.5342]
[1764102782203,5.40433026,137.81,137.8,9.5642]
[1764102782702,5.40433026,137.81,137.79,3.07970762]
[1764102782895,0.046221,137.82,137.8,1.75507544]
[1764102783094,5.42556813,137.81,137.8,8.28927544]
[1764102783303,5.42556813,137.81,137.8,6.5342]
[1764102787312,6.65760103,137.86,137.83,3.03]
[1764102787705,9.57760103,137.86,137.81,101.634]
[1764102787910,9.57760103,137.86,137.82,4.78228791]
[1764102788112,9.57760103,137.86,137.82,3.03]
[1764102788408,0.05489469,137.85,137.83,0.05221606]
[1764102788614,2.97489469,137.85,137.83,0.05221606]
[1764102789312,2.97489469,137.85,137.84,6.5323]
[1764102789613,2.97489469,137.85,137.83,0.05221606]
[1764102790108,0.05489469,137.85,137.84,6.5323]
[1764102791515,2.97489469,137.85,137.83,0.05221606]
[1764102791907,2.92,137.84,137.83,0.05221606]
[1764102792713,8.50333911,137.84,137.83,0.05221606]
[1764102793122,2.92,137.83,137.76,5.68333061]
[1764102793413,2.92,137.81,137.79,1.75291986]
[1764102793602,8.50333911,137.8,137.76,3.03]
[1764102793806,5.58333911,137.79,137.78,1.75296413]
[1764102795105,5.58333911,137.79,137.78,3.03]
[1764102796919,3.911e-05,137.79,137.78,3.03]
[1764102797226,25.08,137.84,137.81,9.4133]
[1764102797516,9.87958288,137.85,137.81,2.88]
[1764102797517,34.95958288,137.85,137.81,2.88]
[1764102797816,28.18,137.85,137.82,8.28390038]
[1764102798010,28.18,137.85,137.82,6.5331]
[1764102798212,28.18,137.85,137.82,6.58037192]
[1764102798213,3.14918187,137.85,137.82,6.58037192]
[1764102798427,0.04918187,137.85,137.83,6.5327]
[1764102798916,0.04918187,137.85,137.84,2.88]
[1764102799220,6.77958288,137.89,137.86,2.88]
[1764102799517,5.39356756,137.88,137.87,2.88]
[1764102800423,5.39356756,137.88,137.87,9.4109]
[1764102800622,5.39356756,137.88,137.86,0.05563316]
[1764102800923,5.39356756,137.87,137.86,6.58693316]
[1764102801923,8.49356756,137.87,137.86,0.05563316]
[1764102802222,15.27315044,137.87,137.86,0.05563316]
[1764102803123,3.1,137.86,137.8,2.88]
[1764102803327,8.49356756,137.85,137.83,1.74974602]
[1764102803622,5.39356756,137.84,137.83,1.74974602]
[1764102803824,8.49356756,137.84,137.8,9.4138]
[1764102804017,3.1,137.82,137.77,2.88]
[1764102804223,5.39356756,137.81,137.8,1.75080422]
[1764102807225,5.39356756,137.81,137.79,6.58503269]
[1764102807530,8.49356756,137.8,137.79,0.05043269]
[1764102807727,3.1,137.79,137.71,2.88]
[1764102807916,3.1,137.77,137.73,1.753418]
[1764102808119,8.49356756,137.76,137.73,1.753418]
[1764102808317,8.49356756,137.75,137.73,1.753418]
[1764102808518,25.08,137.77,137.68,101.7292]
[1764102808519,8.49511339,137.74,137.72,1.753418]
[1764102808828,0.04605338,137.74,137.73,1.753418]
[1764102809032,0.04605338,137.74,137.72,9.46931729]
[1764102809220,5.56086427,137.73,137.72,9.46931729]
[1764102810330,3.1,137.78,137.75,6.5366]
[1764102810331,23.18,137.78,137.75,6.5366]
[1764102810532,5.38885324,137.77,137.75,6.5366]
[1764102810722,6.77818395,137.8,137.76,101.6733]
[1764102810919,5.38760778,137.82,137.78,4.62896152]
[1764102811119,3.1,137.82,137.79,1.74896152]
[1764102811323,0.05506584,137.81,137.79,6.59015358]
[1764102811527,3.15506584,137.81,137.79,0.05555358]
[1764102812235,0.05506584,137.81,137.79,0.05555358]
[1764102812726,3.15506584,137.81,137.79,0.05555358]
[1764102813728,0.05506584,137.81,137.79,2.93555358]
[1764102814828,3.15506584,137.81,137.79,0.05555358]
[1764102816336,0.05506584,137.81,137.79,0.05555358]
[1764102816638,3.15506584,137.81,137.79,0.05555358]
[1764102817944,0.05506584,137.81,137.79,0.05555358]
[1764102819134,3.15506584,137.81,137.79,0.05555358]
[1764102819334,0.05506584,137.81,137.79,0.05555358]
[1764102819539,0.05506584,137.81,137.79,2.93555358]
[1764102819940,0.05506584,137.81,137.79,0.05555358]
[1764102822141,5.48309449,137.8,137.79,0.05555358]
[1764102825542,5.48457907,137.8,137.79,0.05555358]
[1764102825941,8.58457907,137.8,137.79,0.05555358]
[1764102826144,13.94838051,137.8,137.79,0.05555358]
[1764102826950,3.1,137.79,137.72,2.88]
[1764102827149,3.1,137.77,137.76,1.75249956]
[1764102827357,8.58457907,137.77,137.76,1.75249956]
[1764102827543,14.15193045,137.77,137.76,1.75249956]
[1764102828141,11.05193045,137.77,137.76,1.75249956]
[1764102828447,14.08193045,137.77,137.76,1.75249956]
[1764102829347,14.08193045,137.77,137.75,0.05482602]
[1764102829545,5.48457907,137.76,137.75,0.05482602]
[1764102829944,8.51457907,137.76,137.75,0.05482602]
[1764102830251,14.08066833,137.76,137.75,0.05482602]
[1764102830637,5.48457907,137.76,137.75,0.05482602]
[1764102831846,8.51457907,137.76,137.75,0.05482602]
[1764102832047,5.48457907,137.76,137.75,0.05482602]
[1764102834243,33.55457907,137.76,137.75,0.05482602]
[1764102834439,3.03,137.75,137.69,2.95]
[1764102834645,8.51457907,137.74,137.69,2.95]
[1764102834852,5.48457907,137.73,137.69,2.95]
[1764102835046,3.03,137.74,137.69,2.95]
[1764102835250,5.4842433,137.73,137.7,6.5386]
[1764102835447,0.05087208,137.73,137.7,9.53567142]
[1764102835848,0.05087208,137.73,137.71,9.4884]
[1764102836750,3.08087208,137.73,137.7,0.04707142]
[1764102837460,3.08087208,137.73,137.71,1.75158664]
[1764102837461,8.51418591,137.72,137.71,1.75158664]
[1764102837652,14.07806795,137.72,137.71,1.75158664]
[1764102838051,3.03,137.71,137.7,0.04707142]
[1764102838248,8.51418591,137.71,137.7,0.04707142]
[1764102840367,5.48418591,137.71,137.7,9.72607142]
[1764102840659,8.41418591,137.71,137.7,0.04707142]
[1764102841063,8.41418591,137.71,137.61,101.7817]
[1764102841064,2.93,137.7,137.61,3.14]
[1764102841254,2.93,137.68,137.65,1.7520949]
[1764102841462,2.93,137.66,137.65,1.7520949]
[1764102841758,2.93,137.65,137.58,3.14]
[1764102842064,2.93,137.65,137.6,0.04871754]
[1764102842065,2.97776375,137.63,137.6,0.04871754]
[1764102842268,2.93,137.61,137.55,3.14]
[1764102842668,2.93,137.61,137.6,1.74950886]
[1764102843468,2.93,137.61,137.59,1.79982462]
[1764102843675,27.99,137.6,137.59,0.05031576]
[1764102843976,2.93,137.6,137.59,1.79872452]
[1764102844272,27.99,137.6,137.59,0.05031576]
[1764102844467,2.93,137.6,137.59,1.79685959]
[1764102844673,27.99,137.6,137.59,0.05031576]
[1764102844876,33.45134894,137.6,137.59,0.05031576]
[1764102845075,2.93,137.59,137.51,104.9959]
[1764102845375,2.93,137.59,137.58,1.74712938]
[1764102845879,33.44660894,137.61,137.58,1.74712938]
[1764102846071,33.44660894,137.61,137.6,1.74469814]
[1764102846072,28.04370165,137.61,137.6,1.74469814]
[1764102846574,2.98370165,137.61,137.6,1.74469814]
[1764102846767,28.04370165,137.61,137.6,1.74469814]
[1764102847472,2.93,137.6,137.58,0.0469514]
[1764102847980,8.37942273,137.6,137.58,0.0469514]
[1764102848277,8.37942273,137.59,137.58,0.0469514]
[1764102848471,2.93,137.58,137.52,9.6873]
[1764102848661,2.93,137.58,137.55,1.74307588]
[1764102849376,2.93,137.57,137.55,1.79041223]
[1764102849576,2.93,137.57,137.55,0.04733635]
[1764102849874,8.37210667,137.57,137.46,3.14]
[1764102850074,2.93,137.55,137.44,3.14]
[1764102850275,2.93,137.53,137.44,3.14]
[1764102850574,2.93,137.51,137.44,3.14]
[1764102851072,0.05023272,137.49,137.48,1.74121773]
[1764102851272,25.13402789,137.5,137.48,1.74121773]
[1764102851474,0.05402789,137.5,137.49,4.87848256]
[1764102851665,0.05402789,137.5,137.47,3.18855147]
[1764102851863,0.05402789,137.5,137.49,1.73840526]
[1764102852068,0.05402789,137.5,137.49,3.14]
[1764102852369,0.05402789,137.5,137.47,3.18855147]
[1764102852775,0.05402789,137.5,137.49,3.14]
[1764102853171,0.05402789,137.5,137.47,3.18855147]
[1764102853371,2.98402789,137.5,137.49,1.7348717]
[1764102853763,0.05402789,137.5,137.49,1.7348717]
[1764102853968,0.05402789,137.5,137.47,3.18855147]
[1764102854772,0.05402789,137.5,137.47,9.73825147]
[1764102854977,0.05402789,137.5,137.47,3.18855147]
[1764102856376,0.05402789,137.5,137.49,3.14]
[1764102857685,25.1,137.56,137.5,3.06]
[1764102857878,2.88,137.55,137.52,1.72873857]
[1764102858076,27.98,137.56,137.53,1.72873857]
[1764102858276,2.88,137.56,137.5,3.06]
[1764102858480,2.88,137.56,137.53,1.7277394]
[1764102858670,2.92900021,137.56,137.53,1.77425002]
[1764102858870,2.92900021,137.56,137.53,0.04651062]
[1764102859083,2.92900021,137.56,137.53,1.77455954]
[1764102859283,2.92900021,137.56,137.53,0.04651062]
[1764102859486,2.92900021,137.56,137.53,1.77434065]
[1764102859783,2.92900021,137.56,137.53,0.04651062]
[1764102859988,2.92900021,137.56,137.53,1.7743403]
[1764102860185,2.92900021,137.56,137.54,1.72782968]
[1764102860380,2.92900021,137.56,137.53,0.04651062]
[1764102863192,2.92900021,137.56,137.46,104.952]
[1764102863380,2.88,137.56,137.51,1.7298704]
[1764102864181,0.05201048,137.55,137.52,0.04595253]
[1764102864382,2.88,137.54,137.52,0.04595253]
[1764102865589,2.93201048,137.55,137.52,0.04595253]
[1764102865785,0.05201048,137.55,137.53,1.72957432]
[1764102866181,2.93201048,137.55,137.53,1.72957432]
[1764102866576,2.93201048,137.55,137.52,0.04595253]
[1764102867480,2.93201048,137.55,137.53,1.73088322]
[1764102867682,2.93201048,137.55,137.52,0.04595253]
[1764102869985,2.93201048,137.55,137.53,1.73249023]
[1764102870789,2.93201048,137.55,137.52,0.04595253]
[1764102871190,8.41687575,137.54,137.52,0.04595253]
[1764102871383,2.88,137.52,137.45,3.06]
[1764102871583,2.88,137.51,137.49,1.73595041]
[1764102872488,2.92612771,137.51,137.49,1.79144891]
[1764102872688,2.92612771,137.51,137.49,0.0554985]
[1764102872889,2.92612771,137.51,137.49,1.79235815]
[1764102873093,2.92612771,137.51,137.49,0.0554985]
[1764102873285,2.92612771,137.51,137.49,1.79235815]
[1764102873592,8.38752887,137.5,137.49,0.0554985]
[1764102874094,33.46752887,137.5,137.49,0.0554985]
[1764102874489,25.08,137.5,137.49,0.0554985]
[1764102874791,0.04612771,137.51,137.49,3.1154985]
[1764102874989,0.04612771,137.51,137.5,4.7980819]
[1764102875194,0.04612771,137.51,137.49,0.0554985]
[1764102875398,0.04612771,137.51,137.5,1.73895193]
[1764102875594,0.04612771,137.51,137.49,3.1154985]
[1764102876894,5.38394603,137.56,137.49,3.1154985]
[1764102877097,2.88,137.57,137.54,1.73959685]
[1764102877398,5.52137537,137.56,137.55,1.73959685]
[1764102877598,5.52137537,137.56,137.55,3.06]
[1764102877896,5.38807819,137.57,137.54,0.05386139]
[1764102877897,0.0522697,137.57,137.54,0.05386139]
[1764102878083,0.0522697,137.57,137.56,1.74086031]
[1764102878282,10.96391842,137.57,137.56,1.74086031]
[1764102879799,13.84391842,137.57,137.56,1.74086031]
[1764102879995,13.84391842,137.57,137.55,1.74086031]
[1764102880190,10.91164872,137.56,137.55,1.74582289]
[1764102881490,20.51193842,137.56,137.54,0.05386139]
[1764102881688,13.79164872,137.55,137.54,0.05386139]
[1764102881888,20.51193842,137.55,137.54,0.05386139]
[1764102882295,13.79164872,137.55,137.54,0.05386139]
[1764102883298,22.77977032,137.55,137.54,0.05386139]
[1764102887901,47.90454725,137.55,137.51,3.16]
[1764102888093,10.91164872,137.54,137.53,1.76440421]
[1764102889099,17.68973823,137.54,137.53,1.76440421]
[1764102890109,20.79973823,137.54,137.53,1.76440421]
[1764102890593,14.02164872,137.54,137.52,0.05241654]
[1764102890789,17.69441653,137.53,137.52,0.05241654]
[1764102892103,10.91164872,137.53,137.52,0.05241654]
[1764102893201,23.46972986,137.53,137.52,0.05241654]
[1764102893804,23.46972986,137.53,137.45,2.66531333]
[1764102893805,3.11,137.52,137.45,3.16]
[1764102894108,3.11,137.5,137.49,1.77021159]
[1764102894400,14.02164872,137.5,137.49,1.77021159]
[1764102894904,3.11,137.49,137.48,0.05064664]
[1764102895109,10.91164872,137.49,137.48,1.82163059]
[1764102895298,14.02164872,137.49,137.48,0.05064664]
[1764102895501,10.91164872,137.49,137.48,1.82150112]
[1764102895800,10.91164872,137.49,137.48,0.05064664]
[1764102897600,14.02164872,137.49,137.48,1.82182432]
[1764102897798,14.02164872,137.49,137.48,0.05064664]
[1764102898003,14.02164872,137.49,137.48,1.82182389]
[1764102898202,14.02164872,137.49,137.48,0.05064664]
[1764102898508,10.91164872,137.49,137.48,4.98177304]
[1764102898703,5.38913386,137.49,137.48,0.05064664]
[1764102899104,10.92299683,137.49,137.48,0.05064664]
[1764102899303,5.38913386,137.49,137.48,0.05064664]
[1764102900710,5.38913386,137.49,137.48,3.08064664]
[1764102901705,5.38913386,137.49,137.48,0.05064664]
[1764102901910,8.52913386,137.49,137.48,0.05064664]
[1764102902109,8.52913386,137.49,137.48,3.08064664]
[1764102902110,5.38913386,137.49,137.48,3.08064664]
[1764102903309,0.05424234,137.51,137.48,3.08064664]
[1764102903512,0.05424234,137.51,137.49,9.579]
[1764102903513,5.49559052,137.5,137.49,9.579]
[1764102903910,9.9333111,137.58,137.53,3.03]
[1764102904117,8.68098095,137.57,137.54,1.77033928]
[1764102904302,8.68098095,137.56,137.55,1.77033928]
[1764102904505,8.68098095,137.56,137.53,3.03]
[1764102904708,3.14,137.56,137.55,1.77075096]
[1764102904906,8.67977089,137.56,137.55,1.77075096]
[1764102908206,3.14,137.55,137.54,6.59243729]
[1764102908406,8.67977089,137.55,137.54,6.59243729]
[1764102909021,3.14,137.55,137.54,6.59243729]
[1764102909209,3.19565985,137.57,137.55,6.546]
[1764102909412,5.53752133,137.56,137.55,6.546]
[1764102911309,5.53752133,137.56,137.54,0.04593729]
[1764102911310,8.67752133,137.56,137.54,0.04593729]
[1764102911506,3.14,137.56,137.55,1.77313083]
[1764102911707,8.67655161,137.56,137.55,1.77313083]
[1764102912107,5.53655161,137.56,137.55,1.77313083]
[1764102912518,8.67655161,137.56,137.55,1.77313083]
[1764102912920,0.05565985,137.57,137.56,6.5456]
[1764102913117,5.591561,137.57,137.56,6.5456]
[1764102913625,8.731561,137.57,137.56,6.5456]
[1764102914314,8.731561,137.57,137.54,9.62223729]
[1764102914518,3.19565985,137.57,137.56,1.77310362]
[1764102914723,8.73025577,137.57,137.56,1.77310362]
[1764102915115,3.14,137.56,137.55,1.77310362]
[1764102915311,8.67459592,137.56,137.55,1.77310362]
[1764102915717,0.05565985,137.57,137.55,4.80310362]
[1764102915922,8.55320781,137.56,137.54,0.04593729]
[1764102916117,0.05565985,137.57,137.54,0.04593729]
[1764102916118,14.08837827,137.55,137.54,0.04593729]
[1764102916420,16.7536916,137.55,137.54,0.04593729]
[1764102916821,14.08837827,137.55,137.54,0.04593729]
[1764102917014,16.7536916,137.55,137.54,0.04593729]
[1764102918016,3.1,137.54,137.46,3.14]
[1764102918218,3.1,137.52,137.51,1.7743695]
[1764102918519,14.04837827,137.52,137.51,1.7743695]
[1764102919115,14.04837827,137.52,137.5,0.05228289]
[1764102919317,16.7136916,137.51,137.5,0.05228289]
[1764102921219,14.04837827,137.51,137.5,0.05228289]
[1764102922826,5.41375542,137.51,137.5,3.19228289]
[1764102923028,0.0473605,137.53,137.5,3.19228289]
[1764102923325,5.41732694,137.52,137.5,9.74078289]
[1764102923523,3.1473605,137.53,137.5,3.19228289]
[1764102923722,5.41765565,137.52,137.5,9.74078289]
[1764102923929,0.0473605,137.53,137.51,3.14]
[1764102924221,5.41737779,137.52,137.51,3.14]
[1764102924429,0.0473605,137.53,137.52,3.14]
[1764102924727,5.46435818,137.53,137.52,3.14]
[1764102925632,5.46435818,137.53,137.52,9.6875]
[1764102926630,5.46435818,137.53,137.5,3.19228289]
[1764102926928,5.41699768,137.52,137.51,6.548]
[1764102927127,0.0473605,137.53,137.51,9.688]
[1764102927327,2.66531333,137.61,137.54,3.14]
[1764102927630,3.1,137.6,137.58,1.77492844]
[1764102928222,3.15117685,137.6,137.58,1.83051305]
[1764102928422,3.15117685,137.6,137.58,0.05558461]
[1764102928727,3.15117685,137.6,137.59,1.77511647]
[1764102928933,3.15117685,137.6,137.58,0.05558461]
[1764102930230,0.05117685,137.6,137.59,1.77360359]
[1764102932427,3.15117685,137.6,137.59,1.77360359]
[1764102932628,0.05117685,137.6,137.58,3.19558461]
[1764102932822,0.05117685,137.6,137.59,1.77188766]
[1764102933037,0.05117685,137.6,137.59,3.14]
[1764102934032,0.05117685,137.6,137.58,6.60018461]
[1764102934252,0.05117685,137.6,137.59,1.77156316]
[1764102934730,0.05117685,137.6,137.58,9.74018461]
[1764102935227,3.15117685,137.6,137.58,0.05558461]
[1764102935429,0.05117685,137.6,137.58,0.05558461]
[1764102935818,0.05117685,137.6,137.58,3.19558461]
[1764102936620,0.05117685,137.6,137.59,3.14]
[1764102936824,3.1,137.66,137.59,3.14]
[1764102937020,3.1,137.66,137.63,1.76948729]
[1764102937730,3.14836821,137.66,137.63,1.82317654]
[1764102937928,3.14836821,137.66,137.63,0.05368925]
[1764102938132,3.14836821,137.66,137.63,1.82234037]
[1764102938330,3.14836821,137.66,137.63,0.05368925]
[1764102938637,3.14836821,137.66,137.63,1.82157518]
[1764102938836,3.14836821,137.66,137.63,0.05368925]
[1764102939327,9.8933111,137.64,137.52,3.14]
[1764102939527,3.1,137.62,137.57,1.76934126]
[1764102939729,3.1,137.6,137.57,1.76934126]
[1764102939928,5.32137794,137.59,137.57,1.76934126]
[1764102940138,3.1,137.6,137.57,1.76934126]
[1764102940336,5.32309621,137.59,137.57,1.81888488]
[1764102940538,3.15364897,137.6,137.58,1.76934126]
[1764102940834,5.32297945,137.59,137.57,0.04954362]
[1764102941137,3.15364897,137.6,137.58,1.76914997]
[1764102941341,5.32363605,137.59,137.58,1.76914997]
[1764102942235,5.32363605,137.59,137.58,4.90914997]
[1764102942435,5.49849847,137.63,137.59,3.14]
[1764102942737,5.32386567,137.62,137.61,1.76904891]
[1764102942938,3.1,137.64,137.6,3.14]
[1764102943139,5.32277544,137.63,137.62,1.76827689]
[1764102943729,3.1,137.62,137.61,0.04919922]
[1764102943930,8.42277544,137.62,137.61,0.04919922]
[1764102944235,3.1,137.61,137.56,3.14]
[1764102944431,8.42277544,137.6,137.59,1.76925378]
[1764102944828,5.32277544,137.6,137.59,1.76925378]
[1764102945026,8.59849847,137.62,137.59,1.76925378]
[1764102945238,5.3259799,137.61,137.6,1.76925378]
[1764102945542,5.3259799,137.61,137.59,0.04856947]
[1764102945724,8.64795054,137.62,137.6,1.76863662]
[1764102945929,5.32591416,137.61,137.6,1.76863662]
[1764102947131,8.42591416,137.61,137.6,1.76863662]
[1764102947431,5.32591416,137.61,137.6,1.76863662]
[1764102947835,5.32591416,137.61,137.6,4.93863662]
[1764102948032,0.04945207,137.62,137.6,4.93863662]
[1764102948238,0.04945207,137.62,137.6,3.17]
[1764102948435,0.04945207,137.62,137.61,1.76844686]
[1764102948639,5.37626734,137.62,137.6,1.76844686]
[1764102948843,0.04945207,137.62,137.61,1.76844686]
[1764102949041,8.43667534,137.62,137.61,1.76844686]
[1764102949241,8.43667534,137.62,137.6,1.76844686]
[1764102949443,5.32722327,137.61,137.6,1.76844686]
[1764102951944,3.10945207,137.62,137.59,6.59276947]
[1764102952143,3.10945207,137.62,137.61,1.76831298]
[1764102952347,8.43532533,137.62,137.6,1.76831298]
[1764102952645,5.32587326,137.61,137.6,1.76831298]
[1764102953047,5.32587326,137.61,137.6,11.48201298]
[1764102953238,0.04945207,137.62,137.6,3.17]
[1764102953433,3.10945207,137.62,137.61,1.7680377]
[1764102953640,8.45825264,137.62,137.61,1.7680377]
[1764102954250,5.39825264,137.62,137.61,1.7680377]
[1764102956152,0.04945207,137.62,137.61,8.3112377]
[1764102956350,0.04945207,137.62,137.61,6.5432]
[1764102956645,0.04945207,137.62,137.61,9.7132]
[1764102958947,0.04945207,137.62,137.59,3.21856947]
[1764102959951,0.04945207,137.62,137.6,9.6733]
[1764102960153,0.04945207,137.62,137.6,3.13]
[1764102960554,0.04945207,137.62,137.61,9.6732]
[1764102963052,3.05945207,137.62,137.59,0.04856947]
[1764102963254,5.3473692,137.61,137.6,1.76688859]
[1764102964451,5.3473692,137.61,137.56,3.13]
[1764102964452,3.01,137.6,137.56,3.13]
[1764102964654,8.3573692,137.59,137.56,3.13]
[1764102964853,3.01,137.59,137.56,3.13]
[1764102965355,3.01,137.59,137.57,6.5449]
[1764102965557,0.04692654,137.59,137.58,1.77088668]
[1764102965748,0.04692654,137.59,137.57,3.18265208]
[1764102966156,3.05692654,137.59,137.57,0.05265208]
[1764102966659,0.04692654,137.59,137.57,3.18265208]
[1764102967257,3.05692654,137.59,137.57,0.05265208]
[1764102967459,8.37454325,137.58,137.57,0.05265208]
[1764102967659,5.36454325,137.58,137.57,3.18265208]
[1764102969055,8.37454325,137.58,137.57,0.05265208]
[1764102969254,5.36454325,137.58,137.57,0.05265208]
[1764102970456,5.36454325,137.58,137.57,3.18265208]
[1764102971155,8.37454325,137.58,137.57,0.05265208]
[1764102971357,3.01,137.57,137.51,3.13]
[1764102971556,3.01,137.55,137.51,3.13]
[1764102971753,3.01,137.53,137.48,3.13]
[1764102971951,10.8991736,137.54,137.48,3.13]
[1764102971952,8.37454325,137.52,137.48,3.13]
[1764102972153,5.37638094,137.51,137.45,3.13]
[1764102972349,3.01,137.49,137.47,6.5496]
[1764102972553,5.37638094,137.48,137.47,0.02222151]
[1764102973263,8.38638094,137.48,137.47,0.02222151]
[1764102974358,3.01,137.47,137.41,105.0594]
[1764102974564,3.01,137.47,137.44,6.5511]
[1764102974861,3.01,137.47,137.44,9.6811]
[1764102975260,3.05679352,137.47,137.45,6.5507]
[1764102976061,3.05679352,137.47,137.42,101.9223]